bitfinex/quotes_ETHUSD_20250715
["timestamp","ask_amount","ask_price","bid_price","bid_amount"]
[1752589889003,58.45169902,3049.2,3049.1,0.04]
[1752589889243,3.27987142,3048.9,3048.8,0.002]
[1752589889361,50.71459731,3048.9,3048.8,0.002]
[1752589889695,23.22874447,3048.6,3048.5,0.002]
[1752589889894,58.99474447,3048.6,3048.5,0.002]
[1752589890289,59.23584984,3048.6,3048.5,0.002]
[1752589890452,50.38521917,3048.6,3048.5,0.002]
[1752589890654,55.60221917,3048.6,3048.5,0.002]
[1752589890859,59.43241335,3048.6,3048.5,0.002]
[1752589891167,59.43241335,3048.6,3047.5,10.1010101]
[1752589891168,3.28062463,3048.2,3047.5,10.1010101]
[1752589891369,1.6114,3047.7,3047.5,10.1010101]
[1752589891557,53.56227618,3047.6,3047.5,10.1010101]
[1752589891757,53.52955029,3047.6,3047.5,10.1010101]
[1752589891967,48.31255029,3047.6,3047.5,10.1010101]
[1752589892310,53.52955029,3047.6,3047.5,10.1010101]
[1752589893296,56.81082079,3047.6,3047.5,10.1010101]
[1752589893498,53.52955029,3047.6,3047.5,10.1010101]
[1752589893673,53.52955029,3047.6,3047.5,13.38238827]
[1752589893674,48.31255029,3047.6,3047.5,13.38238827]
[1752589893870,45.218,3047.6,3047.5,10.1010101]
[1752589894399,1.6114,3047.7,3047.6,3.2812705]
[1752589894614,5.218,3047.7,3047.6,3.2812705]
[1752589894899,15.218,3047.7,3047.6,3.2812705]
[1752589896216,1.6412,3048.4,3047.5,10.1010101]
[1752589896359,35.25072589,3048.3,3047.6,3.2812705]
[1752589896559,10.0,3048.1,3047.5,15.03553305]
[1752589896768,53.56327618,3048.0,3047.5,10.1010101]
[1752589896974,1.5185,3047.8,3047.5,10.1010101]
[1752589897330,10.0,3047.6,3047.5,10.1030101]
[1752589897473,14.80020123,3047.2,3047.1,10.1410101]
[1752589897671,58.33075152,3047.2,3047.1,10.1410101]
[1752589897979,58.88075152,3047.2,3047.1,1.29214082]
[1752589898178,60.84975152,3047.2,3047.1,1e-08]
[1752589899117,60.84975152,3047.2,3046.9,0.7485]
[1752589899118,15.49785527,3046.5,3046.2,0.002]
[1752589899322,59.02940556,3046.5,3046.2,0.002]
[1752589899679,3.28277854,3046.2,3046.1,1e-08]
[1752589899920,50.90430443,3046.2,3046.1,1e-08]
[1752589900214,50.87157854,3046.2,3046.1,1e-08]
[1752589900575,45.90006466,3046.2,3046.1,1e-08]
[1752589900808,3.28320966,3045.8,3045.1,0.04]
[1752589901016,28.92338584,3045.8,3045.1,0.04]
[1752589901323,50.38845029,3045.8,3045.1,0.04]
[1752589901490,58.89065995,3045.8,3045.1,0.04]
[1752589902390,15.35943308,3045.5,3045.1,0.04]
[1752589902701,15.47085656,3045.2,3045.1,1e-08]
[1752589902904,15.47107224,3045.0,3044.9,0.2495]
[1752589903214,42.187,3045.0,3044.9,0.2495]
[1752589903524,50.88123894,3045.0,3044.9,0.2495]
[1752589904228,3.83439583,3044.7,3044.6,10.1010101]
[1752589904461,3.83439583,3044.7,3043.6,10.1010101]
[1752589904462,3.83493528,3044.2,3043.6,10.1010101]
[1752589904669,12.1477014,3044.0,3043.9,8.16816685]
[1752589904834,3.83547491,3043.7,3043.6,10.1010101]
[1752589905036,50.6882008,3043.7,3043.6,10.1010101]
[1752589905226,3.28590674,3043.3,3042.5,10.1010101]
[1752589905423,49.09063263,3043.3,3042.5,10.1010101]
[1752589905665,49.05790674,3043.3,3042.5,10.1010101]
[1752589905831,50.92912295,3043.3,3042.5,10.1010101]
[1752589906028,45.70712295,3043.3,3042.5,10.1010101]
[1752589906222,40.82121621,3043.3,3042.5,10.1010101]
[1752589906425,48.77912295,3043.3,3042.5,10.1010101]
[1752589906627,45.49321621,3043.3,3042.5,10.1010101]
[1752589906851,49.32912295,3043.3,3042.5,10.1010101]
[1752589907236,44.10712295,3043.3,3042.5,10.1010101]
[1752589907436,30.27121621,3043.3,3042.5,10.1010101]
[1752589907638,30.24431621,3043.3,3042.8,3.28636837]
[1752589907949,30.24431621,3043.3,3043.2,14.40112583]
[1752589908179,5.224,3043.3,3043.2,14.40112583]
[1752589908695,0.28014083,3044.1,3043.4,3.28579877]
[1752589908868,5.224,3044.0,3043.3,4.97397137]
[1752589909072,5.224,3044.0,3043.9,3.28525904]
[1752589909295,0.0269,3044.5,3043.9,3.28525904]
[1752589909296,0.0269,3044.9,3044.5,3.2845277]
[1752589909487,5.224,3044.8,3044.3,3.28472226]
[1752589909799,10.0,3044.6,3044.2,1.5408]
[1752589910100,35.25672589,3044.5,3043.8,1.5408]
[1752589910285,5.224,3044.5,3044.4,3.28471948]
[1752589910458,5.25672589,3044.5,3044.4,3.28471948]
[1752589910659,5.224,3044.5,3044.4,3.28471948]
[1752589911192,5.224,3044.5,3044.2,3.28483152]
[1752589911394,30.03272589,3044.4,3043.8,1.5408]
[1752589911598,10.0,3044.2,3043.8,1.5408]
[1752589911809,5.224,3044.1,3044.0,3.28515111]
[1752589911994,15.224,3044.1,3043.8,2.21728]
[1752589912194,10.03272589,3044.0,3043.8,1.5408]
[1752589912411,5.224,3043.9,3043.8,4.82616697]
[1752589912705,15.224,3043.9,3043.8,4.82616697]
[1752589912998,15.224,3043.9,3043.8,1.5408]
[1752589913184,15.224,3043.9,3043.8,3.28536697]
[1752589913495,5.224,3043.9,3043.2,12.72201111]
[1752589913682,0.164,3043.6,3043.3,3.28583469]
[1752589914013,0.164,3043.3,3043.2,10.1010101]
[1752589914343,45.42272589,3043.3,3043.2,10.1010101]
[1752589914458,45.39,3043.3,3043.2,10.1010101]
[1752589914861,15.393,3043.3,3043.2,13.38702482]
[1752589915173,15.393,3043.3,3043.2,10.1010101]
[1752589915624,50.64790674,3043.3,3043.2,10.1010101]
[1752589915784,49.22890674,3043.3,3043.2,10.1010101]
[1752589916213,55.19790674,3043.3,3043.2,10.1010101]
[1752589916728,55.22480674,3043.3,3043.2,10.1010101]
[1752589916923,48.02680674,3043.3,3043.2,10.1010101]
[1752589917084,23.26680674,3043.3,3043.2,10.1010101]
[1752589917285,53.26680674,3043.3,3043.2,10.1010101]
[1752589918396,55.23580674,3043.3,3043.2,10.1010101]
[1752589918598,55.23580674,3043.3,3042.5,6.29968374]
[1752589918599,10.55,3043.2,3042.5,6.29968374]
[1752589918824,13.28709486,3042.2,3042.1,10.1410101]
[1752589919025,48.53009486,3042.2,3042.1,10.1410101]
[1752589919248,40.0,3042.2,3042.1,10.1410101]
[1752589919398,45.243,3042.2,3042.1,10.1410101]
[1752589919596,49.08009486,3042.2,3042.1,10.1410101]
[1752589920231,51.04909486,3042.2,3042.1,10.1410101]
[1752589920412,55.04909486,3042.2,3042.1,1e-08]
[1752589920738,13.83785138,3041.5,3041.4,10.1010101]
[1752589920903,52.17730167,3041.5,3041.4,10.1010101]
[1752589921102,48.88945029,3041.5,3041.4,10.1010101]
[1752589921438,44.5769,3041.5,3041.4,10.1010101]
[1752589921587,49.8199,3041.5,3041.4,10.1010101]
[1752589921789,44.5769,3041.5,3041.4,10.1010101]
[1752589922010,49.8199,3041.5,3041.4,10.1010101]
[1752589922206,49.793,3041.5,3041.4,10.1010101]
[1752589922433,49.243,3041.5,3041.4,10.1010101]
[1752589923005,44.0,3041.5,3041.4,10.1010101]
[1752589923230,49.796,3041.5,3041.4,10.1010101]
[1752589923889,4.0,3041.5,3041.4,16.0151706]
[1752589924121,4.0,3041.5,3041.4,12.72721111]
[1752589924438,0.0269,3042.9,3041.7,3.28753796]
[1752589924643,35.265,3042.8,3041.9,3.28741904]
[1752589924939,30.03272589,3042.7,3041.6,1.5956]
[1752589925149,10.0,3042.5,3041.6,2.86627111]
[1752589925297,0.0269,3043.4,3041.8,1.5434]
[1752589925630,7.894,3043.8,3042.7,1.5434]
[1752589925631,30.03272589,3043.3,3042.7,1.5434]
[1752589925841,35.30272589,3043.2,3042.7,1.5434]
[1752589926008,10.0,3043.0,3042.8,3.28644558]
[1752589926336,5.271,3043.2,3042.8,0.81165026]
[1752589926630,0.03272589,3043.1,3042.7,1.5434]
[1752589926954,7.894,3043.8,3043.2,3.28591205]
[1752589926955,5.271,3043.4,3043.2,3.28591205]
[1752589927138,5.271,3043.4,3042.9,0.03286338]
[1752589927289,5.271,3043.4,3043.1,3.28604577]
[1752589927489,40.03272589,3043.3,3042.7,1.5434]
[1752589927689,7.894,3043.8,3042.7,1.5434]
[1752589927690,10.0,3043.1,3042.7,4.82991365]
[1752589927889,10.0,3042.9,3042.2,1.5434]
[1752589928132,0.03,3043.3,3042.2,1.5434]
[1752589928133,13.28663423,3042.7,3042.2,1.5434]
[1752589928303,10.0,3042.5,3042.2,1.5434]
[1752589928502,10.0,3042.7,3042.2,1.5434]
[1752589928714,0.03272589,3042.6,3042.3,3.28692075]
[1752589928921,10.0,3042.7,3042.6,3.28666272]
[1752589929200,10.0,3042.7,3042.2,1.57627094]
[1752589929201,10.0,3042.7,3042.3,0.811751]
[1752589929401,10.0,3042.7,3042.6,3.28666272]
[1752589930437,10.0,3042.7,3042.4,3.31964801]
[1752589930438,10.0,3042.7,3042.3,0.164]
[1752589930643,0.164,3042.6,3042.2,1.5434]
[1752589930846,10.0,3042.5,3041.8,1.6666]
[1752589931018,0.164,3042.1,3041.8,1.6666]
[1752589931222,10.164,3041.9,3041.8,1.6666]
[1752589931607,10.0,3042.1,3041.8,1.6666]
[1752589931812,10.164,3042.1,3041.8,1.6666]
[1752589932442,10.164,3042.1,3041.8,4.9541117]
[1752589932649,10.0,3041.9,3041.8,1.6666]
[1752589932847,10.0,3041.9,3041.8,4.95412712]
[1752589933051,10.0,3041.9,3041.8,1.6666]
[1752589933260,10.0,3041.9,3041.5,0.164]
[1752589933553,10.164,3041.7,3041.4,10.1010101]
[1752589933737,10.0,3041.5,3041.4,10.1010101]
[1752589933913,5.283,3041.5,3041.4,10.1010101]
[1752589934112,5.283,3041.5,3041.4,13.38896959]
[1752589934312,15.283,3041.5,3041.4,10.1010101]
[1752589934546,15.283,3041.5,3041.4,13.38896959]
[1752589935127,15.283,3041.5,3041.4,15.05667415]
[1752589935316,0.164,3041.9,3041.5,3.28778287]
[1752589935653,0.86861606,3043.4,3041.4,13.29891466]
[1752589935654,0.164,3042.3,3042.2,3.28709486]
[1752589935860,0.30346584,3043.2,3042.2,3.28709486]
[1752589936154,0.164,3043.0,3042.3,1.5381]
[1752589936357,0.164,3043.0,3042.9,3.28633869]
[1752589936562,14.164,3043.0,3042.9,3.28633869]
[1752589937051,10.164,3043.0,3042.9,3.28633869]
[1752589937456,10.0,3042.9,3042.4,3.28684323]
[1752589937660,10.0,3042.7,3042.3,1.5381]
[1752589937951,10.0,3042.5,3042.4,3.28684742]
[1752589938166,10.0,3042.5,3042.3,3.28695908]
[1752589938346,0.03272589,3042.4,3041.9,1.7768]
[1752589938552,0.03272589,3042.4,3042.1,3.28719066]
[1752589938553,0.164,3042.2,3042.1,3.28719066]
[1752589938760,10.0,3042.3,3042.2,3.28709486]
[1752589938939,0.164,3042.5,3042.4,3.28687877]
[1752589939117,10.164,3042.8,3042.7,3.2865547]
[1752589939732,10.0,3042.8,3042.7,3.2865547]
[1752589939932,5.288,3042.9,3042.8,3.28644669]
[1752589940330,0.90134195,3043.4,3043.1,3.2861227]
[1752589940331,0.164,3043.2,3043.1,3.2861227]
[1752589940537,0.86861606,3043.5,3043.3,3.28586369]
[1752589940747,5.285,3043.4,3043.2,3.28595383]
[1752589940949,5.285,3043.4,3043.1,4.9279227]
[1752589940950,5.285,3043.4,3043.3,3.28590674]
[1752589941163,15.285,3043.4,3043.3,3.28590674]
[1752589941355,5.285,3043.4,3043.3,3.28590674]
[1752589942163,0.001,3043.8,3043.7,3.28547491]
[1752589942976,0.001,3043.8,3043.7,4.79747491]
[1752589943140,0.001,3043.8,3043.7,4.96147491]
[1752589943675,0.001,3043.8,3043.7,1.512]
[1752589943676,1.19148386,3043.8,3043.7,1.512]
[1752589943874,0.164,3043.7,3043.3,1.5178]
[1752589944172,1.33099442,3043.5,3043.3,4.80370351]
[1752589944337,1.33099442,3043.5,3043.4,3.28579877]
[1752589944338,0.164,3043.5,3043.4,3.28579877]
[1752589944873,11.16699442,3043.6,3043.5,3.28569081]
[1752589945073,1.16799442,3043.8,3043.5,3.28564772]
[1752589945226,1.16699442,3043.7,3043.5,3.28564772]
[1752589945422,1.16699442,3043.7,3043.6,3.31843868]
[1752589945693,0.001,3043.8,3043.7,3.28547491]
[1752589945868,0.001,3043.8,3043.7,3.31832965]
[1752589946064,1.16699442,3044.3,3043.9,4.79705904]
[1752589946321,2.35551595,3044.9,3044.6,3.28450371]
[1752589946322,1.16799442,3044.7,3044.6,3.28450371]
[1752589946474,0.04,3044.9,3044.8,3.28428796]
[1752589947254,0.07272589,3044.9,3044.8,3.28428796]
[1752589947453,0.04,3044.9,3044.8,3.31713083]
[1752589947808,0.04,3044.9,3044.8,4.62090323]
[1752589948270,0.04,3044.9,3044.8,3.48113083]
[1752589948596,0.04,3044.9,3044.8,8.77513083]
[1752589948799,0.164,3045.6,3045.5,3.28353308]
[1752589948959,0.164,3045.8,3045.5,3.2834265]
[1752589949162,0.164,3045.8,3045.5,3.28353308]
[1752589949435,0.164,3045.8,3045.6,3.28340095]
[1752589949560,0.164,3045.8,3045.7,3.28331746]
[1752589949755,5.333,3045.9,3045.8,3.28320966]
[1752589949985,5.333,3045.9,3045.7,3.28328894]
[1752589950261,5.333,3045.9,3045.8,3.28320966]
[1752589950704,10.04,3045.9,3045.8,3.28320966]
[1752589950857,5.63238141,3045.9,3045.8,3.28320966]
[1752589951053,0.04,3045.9,3045.6,0.03283425]
[1752589951498,0.04,3045.9,3045.8,3.28320966]
[1752589952543,0.04,3045.9,3045.8,3.44720966]
[1752589953249,0.04,3045.9,3045.8,5.52415864]
[1752589953592,1e-08,3046.0,3045.9,4.79200187]
[1752589953820,1e-08,3046.0,3045.9,10.10783288]
[1752589954014,1e-08,3046.0,3045.9,10.23900187]
[1752589954391,0.04,3046.9,3046.8,4.79103207]
[1752589954793,0.04,3046.9,3046.8,4.95503207]
[1752589956044,0.04,3046.9,3046.8,4.98785339]
[1752589956405,0.04,3046.9,3046.8,3.28213207]
[1752589956857,3.44615429,3046.8,3046.3,0.164]
[1752589957019,10.0,3046.5,3045.7,1.5171]
[1752589957225,0.164,3046.1,3046.0,3.28299409]
[1752589957421,10.0,3046.3,3045.9,3.31593227]
[1752589957602,10.0,3046.3,3046.2,3.28277854]
[1752589957801,10.164,3046.7,3046.6,3.28234753]
[1752589958552,43.44625726,3046.7,3046.0,3.28291013]
[1752589958846,10.0,3046.7,3046.4,3.28256302]
[1752589959048,0.164,3046.4,3046.2,3.28277499]
[1752589959209,0.19672589,3046.4,3046.2,3.2827746]
[1752589959411,0.164,3046.4,3046.3,3.28267078]
[1752589960451,0.164,3046.4,3045.9,0.03283101]
[1752589960639,10.0,3046.2,3045.8,1.6811]
[1752589960839,10.0,3046.5,3045.8,1.5171]
[1752589961048,0.164,3045.8,3045.6,3.28335695]
[1752589961452,0.164,3045.8,3045.7,3.28331746]
[1752589961748,0.55,3046.7,3045.8,1.6623]
[1752589961912,0.164,3046.0,3045.9,3.28310187]
[1752589962115,0.164,3046.3,3046.2,3.28270648]
[1752589962955,0.164,3046.3,3045.9,3.2830173]
[1752589963157,0.164,3046.3,3045.5,1.784]
[1752589963158,10.0,3046.1,3045.5,1.784]
[1752589963339,0.164,3045.8,3045.1,1.62]
[1752589963521,0.164,3045.8,3045.6,3.28340409]
[1752589963522,10.0,3045.7,3045.6,3.28340409]
[1752589963723,0.164,3045.8,3045.7,3.28331746]
[1752589964439,10.0,3046.0,3045.9,3.28310187]
[1752589964659,10.0,3046.0,3045.9,4.81450187]
[1752589964852,10.165,3046.4,3046.3,3.28267078]
[1752589965066,0.165,3046.4,3046.3,3.28267078]
[1752589966172,0.001,3046.4,3046.3,3.31549748]
[1752589966468,1e-08,3046.4,3046.3,5.02579748]
[1752589967534,0.03,3048.1,3047.7,3.28106617]
[1752589967735,0.06272589,3048.1,3047.8,3.28105518]
[1752589967977,0.204,3047.9,3047.8,3.28105518]
[1752589968684,0.04,3047.9,3047.8,3.28105518]
[1752589969943,0.04,3047.9,3047.8,6.01364848]
[1752589970195,5.281,3048.8,3048.4,3.28032144]
[1752589970394,10.0,3048.7,3048.1,5.281]
[1752589970689,10.0,3048.7,3048.2,0.03280624]
[1752589970985,5.281,3048.8,3048.2,0.03280624]
[1752589970986,5.281,3048.8,3048.6,3.28009506]
[1752589971298,40.03272589,3048.7,3047.8,1.5721]
[1752589971598,10.0,3048.5,3047.7,0.03281162]
[1752589971747,5.52969311,3048.8,3048.0,3.28073476]
[1752589971748,5.281,3048.8,3048.0,3.28073476]
[1752589972104,0.04,3048.9,3048.8,3.279979]
[1752589972600,0.04,3048.9,3048.8,3.58398379]
[1752589972809,0.04,3048.9,3048.8,3.61678358]
[1752589973159,0.03272589,3049.5,3049.4,3.27933363]
[1752589973360,0.04,3049.9,3049.5,3.27916064]
[1752589973579,10.0,3049.7,3049.6,3.27911857]
[1752589973813,0.04,3049.9,3049.4,3.27923192]
[1752589973963,30.0,3049.8,3049.5,3.27916012]
[1752589974306,30.0,3049.8,3049.6,0.30394587]
[1752589974503,40.0,3049.8,3049.7,0.30394587]
[1752589974806,10.0,3049.8,3049.7,0.30394587]
[1752589975008,10.0,3049.8,3049.4,3.27927003]
[1752589975167,0.04,3049.9,3049.5,0.30396044]
[1752589975363,10.0,3049.7,3049.6,3.58307901]
[1752589975588,0.04,3049.9,3049.7,3.27895084]
[1752589975782,40.0,3049.8,3049.7,3.27895084]
[1752589975971,10.0,3049.8,3049.7,3.58297853]
[1752589976514,0.04,3049.9,3049.8,3.27890353]
[1752589976676,0.04,3049.9,3049.8,5.17996004]
[1752589976861,0.04,3049.9,3049.8,10.42805053]
[1752589977280,0.04,3049.9,3049.8,10.42705053]
[1752589978723,0.1632,3050.6,3049.9,3.27879602]
[1752589978925,0.1632,3050.6,3050.5,3.27815112]
[1752589979125,0.1632,3050.6,3050.5,0.303847]
[1752589979280,0.1632,3050.6,3050.5,3.58199812]
[1752589979700,0.1632,3050.6,3050.5,0.303847]
[1752589980141,10.19592589,3050.6,3050.5,0.303847]
[1752589980345,10.1632,3050.6,3050.5,0.303847]
[1752589980550,48.74724366,3050.6,3050.5,0.303847]
[1752589980697,49.29724366,3050.6,3050.5,1e-08]
[1752589981246,0.03,3049.5,3048.6,1.6992]
[1752589981552,10.0,3049.4,3048.7,0.03280086]
[1752589981845,3.27982221,3049.0,3048.6,0.164]
[1752589982162,3.27982221,3049.0,3048.2,1.5833]
[1752589982163,0.164,3048.8,3048.7,3.28008659]
[1752589982469,5.289,3049.4,3049.0,3.27969115]
[1752589982771,40.03272589,3049.3,3048.7,0.1632]
[1752589982975,10.0,3049.1,3048.4,0.164]
[1752589983153,10.0,3048.9,3048.4,3.28031723]
[1752589983322,13.28017177,3048.7,3047.8,1.5654]
[1752589983523,10.0,3048.5,3048.2,3.28054148]
[1752589983724,0.03,3049.3,3048.2,0.66013034]
[1752589983952,10.0,3049.0,3048.3,0.03280517]
[1752589984169,10.0,3049.0,3048.1,0.04]
[1752589984170,10.0,3048.8,3048.1,0.04]
[1752589984487,13.27979495,3049.0,3048.3,3.28042736]
[1752589984767,0.03,3048.7,3048.1,0.04]
[1752589984964,3.28057852,3048.3,3048.1,0.04]
[1752589985170,35.32472589,3048.6,3048.1,0.04]
[1752589985171,43.31335052,3048.2,3048.1,0.04]
[1752589985335,43.28062463,3048.2,3048.1,0.04]
[1752589985541,43.31062463,3048.2,3048.1,0.04]
[1752589985762,49.15562463,3048.2,3048.1,0.04]
[1752589986354,43.86062463,3048.2,3048.1,0.04]
[1752589986521,45.324,3048.2,3048.1,0.04]
[1752589986721,49.15462463,3048.2,3048.1,0.04]
[1752589987130,3.31170123,3047.2,3047.1,0.04]
[1752589987334,45.36272589,3047.2,3047.1,0.04]
[1752589987523,48.61170123,3047.2,3047.1,0.04]
[1752589987728,45.33,3047.2,3047.1,0.04]
[1752589988070,45.57778405,3047.2,3047.1,0.04]
[1752589989170,48.85948528,3047.2,3047.1,0.04]
[1752589989527,40.27778405,3047.2,3047.1,0.04]
[1752589989744,45.57478405,3047.2,3047.1,0.04]
[1752589989949,48.85648528,3047.2,3047.1,0.04]
[1752589990704,59.39777038,3047.2,3047.1,0.04]
[1752589990869,54.10077038,3047.2,3047.1,0.04]
[1752589991050,44.10948528,3047.2,3047.1,0.04]
[1752589991291,49.40548528,3047.2,3047.1,0.04]
[1752589992099,45.57378405,3047.2,3047.1,0.04]
[1752589992395,49.57378405,3047.2,3047.1,0.04]
[1752589992895,48.85548528,3047.2,3047.1,0.04]
[1752589993096,45.57378405,3047.2,3047.1,0.04]
[1752589993306,40.27778405,3047.2,3047.1,0.04]
[1752589993451,45.57378405,3047.2,3047.1,0.04]
[1752589993651,48.85548528,3047.2,3047.1,0.04]
[1752589993890,49.40548528,3047.2,3047.1,0.04]
[1752589994495,40.27778405,3047.2,3047.1,0.04]
[1752589994808,49.40148528,3047.2,3047.1,0.04]
[1752589995455,49.82736575,3047.2,3047.1,0.04]
[1752589995658,53.40148528,3047.2,3047.1,0.04]
[1752589996664,44.82778405,3047.2,3047.1,0.04]
[1752589996880,39.57178405,3047.2,3047.1,0.04]
[1752589997065,49.57178405,3047.2,3047.1,0.04]
[1752589997590,53.40348528,3047.2,3047.1,0.04]
[1752589997754,44.24778405,3047.2,3047.1,0.04]
[1752589997954,45.54078405,3047.2,3047.1,0.04]
[1752589998188,10.0,3047.1,3046.2,1.5244]
[1752589998406,10.0,3046.9,3046.8,3.28213207]
[1752589998689,10.0,3046.9,3046.8,3.58636547]
[1752589999059,40.0,3046.9,3046.8,0.3042334]
[1752589999263,40.0,3046.9,3046.3,3.28267078]
[1752589999509,0.03272589,3046.8,3046.7,3.2822398]
[1752589999707,15.29,3046.8,3046.7,3.58641305]
[1752589999907,7.86,3047.5,3047.4,3.28148585]
[1752590000111,17.15,3047.5,3047.2,3.28165509]
[1752590000410,10.0,3047.3,3047.2,3.28165509]
[1752590000590,45.289,3047.3,3046.9,3.28194923]
[1752590000787,10.0,3047.1,3047.0,3.28191663]
[1752590000988,10.0,3047.1,3046.3,3.28267078]
[1752590000989,45.288,3047.1,3046.2,1.5244]
[1752590001292,0.03272589,3047.0,3046.9,3.28202435]
[1752590001492,10.0,3047.0,3046.9,3.28202435]
[1752590002210,10.0,3047.0,3046.9,3.58609513]
[1752590002615,10.0,3047.0,3046.9,3.28202435]
[1752590002980,40.0,3047.0,3046.9,3.28202435]
[1752590003202,40.0,3047.0,3046.7,3.2821752]
[1752590003514,10.0,3046.8,3046.7,3.28216595]
[1752590003724,5.284,3046.8,3046.4,3.28253843]
[1752590003925,5.284,3046.8,3046.7,3.2822398]
[1752590004713,5.284,3046.8,3046.6,3.28234353]
[1752590004714,10.0,3046.7,3045.4,3.2835851]
[1752590004918,10.0,3046.5,3045.9,1.6238]
[1752590005124,10.0,3046.3,3046.2,3.28277854]
[1752590005423,5.288,3046.3,3046.2,3.28277854]
[1752590005585,8.58140926,3047.3,3046.3,3.28267078]
[1752590005586,10.0,3046.4,3046.3,3.28267078]
[1752590005785,15.286,3046.5,3046.4,3.28256302]
[1752590005998,10.0,3046.5,3046.4,3.28256302]
[1752590006330,0.24751816,3047.3,3047.2,3.28170123]
[1752590006528,34.24751816,3047.3,3047.2,3.28170123]
[1752590006735,9.287,3047.3,3047.2,3.28170123]
[1752590006931,5.287,3047.3,3047.2,3.28170123]
[1752590007610,0.03272589,3047.8,3047.2,2.24265053]
[1752590007918,35.285,3047.7,3047.6,3.2812705]
[1752590008308,5.285,3047.7,3047.6,3.2812705]
[1752590008938,5.285,3047.7,3047.5,3.28136341]
[1752590009085,0.03272589,3047.6,3046.8,1.583]
[1752590009289,35.285,3047.5,3047.1,3.28174809]
[1752590009530,30.0,3047.4,3047.3,3.28159354]
[1752590010223,5.283,3047.4,3047.3,3.28159354]
[1752590010423,0.24248312,3047.6,3047.5,3.28137817]
[1752590010587,0.24248312,3047.6,3047.1,3.28172556]
[1752590010588,5.281,3047.6,3047.1,3.28172556]
[1752590010789,5.31372589,3047.6,3047.3,3.28158701]
[1752590011021,5.281,3047.6,3046.8,4.86507746]
[1752590011227,5.281,3047.6,3047.0,3.28191663]
[1752590011527,3.28156637,3047.4,3046.5,4.79188904]
[1752590011698,38.59337876,3047.3,3046.5,1.5095]
[1752590011900,30.03272589,3047.2,3046.5,1.5095]
[1752590012101,43.14372589,3047.1,3046.4,3.28455233]
[1752590012428,10.03,3046.9,3046.4,0.002]
[1752590012730,3.28245527,3046.5,3046.4,0.002]
[1752590012900,56.97818116,3046.5,3046.4,0.002]
[1752590013088,56.97545527,3046.5,3046.4,0.002]
[1752590013289,58.94845527,3046.5,3046.4,0.002]
[1752590013490,10.0,3045.6,3044.9,4.80248557]
[1752590013714,10.0,3045.4,3044.9,1.5184]
[1752590013924,35.31572589,3045.3,3044.9,1.5184]
[1752590014112,30.03272589,3045.2,3044.9,1.5184]
[1752590014292,40.0,3045.2,3044.9,0.002]
[1752590015311,10.0,3045.2,3045.1,3.3259644]
[1752590015512,7.83,3045.6,3045.3,3.28374872]
[1752590015820,5.283,3045.8,3045.7,3.28331746]
[1752590016019,9.283,3045.8,3045.7,3.28331746]
[1752590016362,9.283,3045.8,3045.4,4.88673617]
[1752590016363,10.0,3045.7,3045.4,4.88673617]
[1752590016519,0.164,3045.7,3045.6,3.28342526]
[1752590016715,15.53520925,3045.8,3045.7,3.28331746]
[1752590016912,15.286,3045.8,3045.7,3.28331746]
[1752590018066,15.284,3045.8,3045.7,3.28331746]
[1752590018430,10.0,3045.8,3045.7,3.28331746]
[1752590018667,15.283,3045.8,3045.7,4.32048539]
[1752590019259,10.0,3045.7,3045.6,0.03283425]
[1752590019451,0.164,3045.6,3045.5,3.28347304]
[1752590019626,15.445,3045.6,3045.5,3.28347304]
[1752590020036,15.446,3045.6,3045.5,3.28347304]
[1752590020271,5.446,3045.6,3045.1,0.042]
[1752590020472,5.31472589,3045.6,3045.1,0.042]
[1752590020848,5.31472589,3045.6,3045.1,3.32590453]
[1752590021176,10.0,3045.3,3045.1,0.042]
[1752590021384,35.31572589,3045.2,3045.1,0.042]
[1752590021551,35.283,3045.2,3045.1,3.3259644]
[1752590021738,35.282,3045.2,3045.1,3.3259644]
[1752590021944,5.282,3045.2,3045.1,3.3259644]
[1752590022270,5.282,3045.2,3045.1,0.7032036]
[1752590022271,5.284,3045.2,3045.1,0.7032036]
[1752590022440,5.284,3045.2,3045.1,3.3259644]
[1752590022840,7.83,3045.9,3045.5,3.2834384]
[1752590023060,45.31672589,3045.8,3045.5,3.2834384]
[1752590023240,10.0,3045.6,3045.1,1.6186]
[1752590023570,0.03272589,3045.5,3045.4,3.2836409]
[1752590023757,10.0,3045.8,3045.7,3.28331746]
[1752590023956,45.281,3045.8,3045.7,3.28331746]
[1752590024153,45.281,3045.8,3045.2,3.28385656]
[1752590024483,5.281,3045.7,3045.5,4.90643308]
[1752590024656,5.281,3045.7,3045.6,3.28342526]
[1752590024853,0.03,3046.6,3045.7,3.28331746]
[1752590025052,8.13151989,3046.5,3046.4,3.28256302]
[1752590025253,8.13151989,3046.5,3045.8,0.03283209]
[1752590025254,43.41251989,3046.5,3045.8,3.28320966]
[1752590025460,10.03272589,3046.4,3046.3,3.28258132]
[1752590025670,10.0,3046.4,3046.3,3.28258132]
[1752590025870,10.0,3046.4,3046.3,3.28267078]
[1752590026147,13.41251989,3046.5,3046.2,3.28276836]
[1752590026363,13.41251989,3046.5,3045.6,4.10236689]
[1752590026364,30.03272589,3046.4,3046.3,3.28267078]
[1752590026561,30.03272589,3046.4,3046.1,3.28287083]
[1752590026562,10.0,3046.3,3046.2,3.28275318]
[1752590026779,15.277,3046.3,3046.2,3.28275318]
[1752590026982,15.277,3046.3,3045.6,0.81898583]
[1752590027168,15.277,3046.3,3046.2,3.28277854]
[1752590028152,15.277,3046.3,3045.7,0.57253485]
[1752590028373,15.277,3046.3,3046.1,3.28282756]
[1752590028575,15.277,3046.3,3046.2,3.28277854]